{"text_format":"1","workbook":"xlsx","n_sheets":2,"sheets":["記録3号","データシート"],"not_rendered":{"charts":0,"images":0,"macros":1,"external_links":0,"defined_names":2,"comments":0,"pivot_tables":0},"unopened":[],"bounds":{"document_bytes":16777216,"sheet_cells":100000,"rows_first":2000,"rows_last":500,"rows_between":2000,"halvings":0,"cell_chars":16384,"cell_head_chars":4096},"cells_cut":0,"cells_raw":0,"read":"whole","date_system":"1900"}

{"sheet":"記録3号","index":0,"n_rows":104,"n_cols":53,"rows_kept":104,"cut":false,"hidden":false,"merged":[[57,21,60,21],[56,24,58,24],[16,26,42,27],[13,28,31,29],[35,29,37,29],[56,29,58,29],[35,24,37,24],[80,24,82,24],[60,26,63,27],[57,32,60,32],[80,29,82,29],[76,44,79,44],[86,44,89,44],[100,44,103,44],[14,44,17,44],[28,44,31,44],[38,44,41,44],[52,44,55,44],[62,44,65,44],[23,33,25,33],[44,33,46,33],[71,33,73,33],[92,33,94,33],[33,36,36,36],[81,36,84,36],[89,41,91,41],[98,41,100,41],[103,41,105,41],[16,37,18,37],[27,37,29,37],[40,37,42,37],[51,37,53,37],[64,37,66,37],[55,41,57,41],[60,41,62,41],[75,37,77,37],[88,37,90,37],[99,37,101,37],[21,40,24,40],[45,40,48,40],[69,40,72,40],[93,40,96,40],[65,41,67,41],[74,41,76,41],[79,41,81,41],[84,41,86,41],[73,48,76,48],[89,48,92,48],[97,48,100,48],[16,45,18,45],[19,45,21,45],[24,45,26,45],[27,45,29,45],[40,45,42,45],[43,45,45,45],[48,45,50,45],[51,45,53,45],[64,45,66,45],[67,45,69,45],[72,45,74,45],[75,45,77,45],[88,45,90,45],[17,48,20,48],[25,48,28,48],[41,48,44,48],[49,48,52,48],[65,48,68,48],[91,45,93,45],[96,45,98,45],[99,45,101,45],[87,52,90,52],[91,52,94,52],[95,52,98,52],[99,52,102,52],[103,52,106,52],[67,52,70,52],[71,52,74,52],[75,52,78,52],[79,52,82,52],[83,52,86,52],[99,51,102,51],[103,51,106,51],[11,52,14,52],[15,52,18,52],[19,52,22,52],[23,52,26,52],[27,52,30,52],[31,52,34,52],[35,52,38,52],[39,52,42,52],[43,52,46,52],[47,52,50,52],[51,52,54,52],[55,52,58,52],[59,52,62,52],[63,52,66,52],[79,51,82,51],[83,51,86,51],[87,51,90,51],[91,51,94,51],[95,51,98,51],[59,51,62,51],[63,51,66,51],[67,51,70,51],[71,51,74,51],[75,51,78,51],[91,50,94,50],[95,50,98,50],[99,50,102,50],[103,50,106,50],[11,51,14,51],[15,51,18,51],[19,51,22,51],[23,51,26,51],[27,51,30,51],[31,51,34,51],[35,51,38,51],[39,51,42,51],[43,51,46,51],[47,51,50,51],[51,51,54,51],[55,51,58,51],[71,50,74,50],[75,50,78,50],[79,50,82,50],[83,50,86,50],[87,50,90,50],[51,50,54,50],[19,50,22,50],[23,50,26,50],[27,50,30,50],[55,3,58,3],[59,3,62,3],[63,3,66,3],[67,3,70,3],[44,20,46,20],[23,20,25,20],[55,50,58,50],[59,50,62,50],[63,50,66,50],[67,50,70,50],[31,50,34,50],[35,50,38,50],[39,50,42,50],[43,50,46,50],[47,50,50,50],[17,41,19,41],[26,41,28,41],[31,41,33,41],[36,41,38,41],[41,41,43,41],[50,41,52,41],[71,3,74,3],[99,16,101,16],[100,9,103,9],[103,0,106,0],[103,1,106,2],[103,12,105,12],[99,3,102,3],[103,3,106,3],[95,0,98,0],[95,1,98,2],[96,8,98,8],[97,5,100,5],[98,12,100,12],[99,0,102,0],[99,1,102,2],[99,8,101,8],[95,3,98,3],[83,0,86,0],[83,1,86,2],[84,12,86,12],[86,9,89,9],[87,0,90,0],[87,1,90,2],[88,8,90,8],[89,5,92,5],[89,12,91,12],[91,0,94,0],[91,1,94,2],[91,8,93,8],[83,3,86,3],[87,3,90,3],[91,3,94,3],[75,0,78,0],[75,1,78,2],[75,8,77,8],[88,16,90,16],[92,20,94,20],[93,13,96,13],[64,16,66,16],[65,5,68,5],[65,12,67,12],[67,0,70,0],[67,1,70,2],[67,8,69,8],[69,13,72,13],[71,0,74,0],[71,1,74,2],[75,16,77,16],[76,9,79,9],[79,0,82,0],[79,1,82,2],[79,12,81,12],[75,3,78,3],[79,3,82,3],[71,20,73,20],[72,8,74,8],[73,5,76,5],[74,12,76,12],[81,17,84,17],[59,0,62,0],[59,1,62,2],[60,12,62,12],[62,9,65,9],[63,0,66,0],[63,1,66,2],[64,8,66,8],[24,8,26,8],[33,17,36,17],[40,16,42,16],[51,16,53,16],[52,9,55,9],[45,13,48,13],[55,0,58,0],[55,1,58,2],[55,12,57,12],[43,1,46,2],[43,8,45,8],[47,0,50,0],[47,1,50,2],[48,8,50,8],[49,5,52,5],[50,12,52,12],[51,0,54,0],[51,1,54,2],[51,8,53,8],[43,3,46,3],[47,3,50,3],[51,3,54,3],[35,0,38,0],[35,1,38,2],[36,12,38,12],[38,9,41,9],[39,0,42,0],[39,1,42,2],[40,8,42,8],[41,5,44,5],[41,12,43,12],[43,0,46,0],[35,3,38,3],[39,3,42,3],[27,0,30,0],[27,1,30,2],[27,8,29,8],[27,16,29,16],[28,9,31,9],[31,0,34,0],[31,1,34,2],[31,12,33,12],[25,5,28,5],[26,12,28,12],[23,3,26,3],[27,3,30,3],[31,3,34,3],[19,0,22,0],[19,1,22,2],[19,8,21,8],[21,13,24,13],[23,0,26,0],[23,1,26,2],[17,5,20,5],[17,12,19,12],[15,3,18,3],[19,3,22,3],[0,0,0,1],[11,0,14,0],[11,1,14,2],[12,12,14,12],[14,9,17,9],[15,0,18,0],[15,1,18,2],[16,8,18,8],[16,16,18,16],[11,3,14,3],[1,1,1,51],[3,48,3,49],[10,9,10,12],[10,13,10,20],[10,21,10,32],[10,33,10,40],[10,41,10,44],[10,45,10,49],[10,4,10,8],[11,50,14,50],[15,50,18,50],[12,41,14,41],[5,9,5,41]]}
[]
[null,{"$f":"データシート!B2","v":"第３5回　全国高等学校女子ソフトボール選抜大会"}]
[]
[null,null,null,null,null,"期　日 ：",null,null,null,{"$f":"データシート!B4","v":"平成２９年３月１８日(金)～２２日(水)"},null,null,null,null,null,null,null,null,null,null,null,null,null,null,null,null,null,null,null,null,null,null,null,null,null,null,null,null,null,null,null,null,null,null,null,null,null,null,"主管 ：",null,"兵庫県ソフトボール協会"]
[]
[null,null,null,null,null,"会　場 ：",null,null,null,{"$f":"データシート!B6","v":"加古川市河川敷両荘地区グラウンド(A,B,C)・日岡山公園野球場(D)"}]
[null,null,null,null,null,null,null,null,null,{"$f":"IF(データシート!B7=\"\",\"\",データシート!B7)","v":""},null,null,null,null,null,null,null,null,null,null,null,null,null,null,null,null,null,null,null,null,null,null,{"$f":"IF(データシート!B10=\"\",\"\",データシート!B10)","v":""}]
[null,null,null,null,null,null,null,null,null,{"$f":"IF(データシート!B8=\"\",\"\",データシート!B8)","v":""}]
[]
[]
[null,null,null,null,"18日",null,null,null,null,"19日",null,null,null,"20日",null,null,null,null,null,null,null,"22日",null,null,null,null,null,null,null,null,null,null,null,"20日",null,null,null,null,null,null,null,"19日",null,null,null,"18日"]
[1,{"$f":"VLOOKUP(A12,team,2,FALSE)","v":"島根県立三刀屋高等学校"},null,{"$f":"VLOOKUP(A12,team,3,FALSE)","v":"島根県"},null,null,null,null,null,null,null,null,null,null,null,null,null,null,null,null,null,null,null,null,null,null,null,null,null,null,null,null,null,null,null,null,null,null,null,null,null,null,null,null,null,null,null,null,null,null,{"$f":"VLOOKUP(BA12,team,2,FALSE)","v":"鳥取城北高等学校"},{"$f":"VLOOKUP(BA12,team,3,FALSE)","v":"鳥取県"},25]
[null,null,null,null,null,null,null,null,null,null,null,null,0,null,null,null,null,null,null,null,null,null,null,null,null,null,null,null,null,null,null,null,null,null,null,null,null,null,null,null,null,0]
[null,null,null,null,null,null,null,null,null,null,null,null,null,null,null,null,null,null,null,null,null,null,null,null,null,null,null,null,"初優勝"]
[]
[2,{"$f":"VLOOKUP(A16,team,2,FALSE)","v":"埼玉栄高等学校"},null,{"$f":"VLOOKUP(A16,team,3,FALSE)","v":"埼玉県"},null,null,null,null,null,null,null,null,null,null,null,null,null,null,null,null,null,null,null,null,null,null,null,null,null,null,null,null,null,null,null,null,null,null,null,null,null,null,null,null,null,null,null,null,null,null,{"$f":"VLOOKUP(BA16,team,2,FALSE)","v":"神奈川県立厚木商業高等学校"},{"$f":"VLOOKUP(BA16,team,3,FALSE)","v":"神奈川県"},26]
[null,null,null,null,null,null,null,null,4,null,null,null,null,null,null,null,3,null,null,null,null,null,null,null,null,null,"創志学園高等学校",null,null,null,null,null,null,null,null,null,null,2,null,null,null,null,null,null,null,2]
[null,null,null,null,null,null,null,null,null,null,null,null,7,null,null,null,null,null,null,null,null,null,null,null,null,null,null,null,null,null,null,null,null,null,null,null,null,null,null,null,null,7]
[]
[3,{"$f":"VLOOKUP(A20,team,2,FALSE)","v":"山形学院高等学校"},null,{"$f":"VLOOKUP(A20,team,3,FALSE)","v":"山形県"},null,null,null,null,0,null,null,null,null,null,null,null,null,null,null,null,null,null,null,null,null,null,null,null,null,null,null,null,null,null,null,null,null,null,null,null,null,null,null,null,null,3,null,null,null,null,{"$f":"VLOOKUP(BA20,team,2,FALSE)","v":"神村学園高等部"},{"$f":"VLOOKUP(BA20,team,3,FALSE)","v":"鹿児島県"},27]
[]
[]
[]
[4,{"$f":"VLOOKUP(A24,team,2,FALSE)","v":"富山県立滑川高等学校"},null,{"$f":"VLOOKUP(A24,team,3,FALSE)","v":"富山県"},null,null,null,null,null,null,null,null,null,null,null,null,null,null,null,null,1,null,null,null,null,null,null,null,null,null,null,null,null,3,null,null,null,null,null,null,null,null,null,null,null,null,null,null,null,null,{"$f":"VLOOKUP(BA24,team,2,FALSE)","v":"秋田県立秋田北高等学校"},{"$f":"VLOOKUP(BA24,team,3,FALSE)","v":"秋田県"},28]
[null,null,null,null,null,null,null,null,1,null,null,null,null,null,null,null,null,null,null,null,null,null,null,null,null,null,null,null,null,null,null,null,null,null,null,null,null,null,null,null,null,null,null,null,null,1]
[]
[null,null,null,null,null,null,null,null,null,null,null,null,11,null,null,null,null,null,null,null,null,null,null,null,null,null,null,null,null,null,null,null,null,null,null,null,null,null,null,null,null,3]
[5,{"$f":"VLOOKUP(A28,team,2,FALSE)","v":"九州文化学園高等学校"},null,{"$f":"VLOOKUP(A28,team,3,FALSE)","v":"長崎県"},null,null,null,null,0,null,null,null,null,null,null,null,5,null,null,null,null,null,null,null,null,null,null,null,null,null,null,null,null,null,null,null,null,3,null,null,null,null,null,null,null,6,null,null,null,null,{"$f":"VLOOKUP(BA28,team,2,FALSE)","v":"神戸野田高等学校"},{"$f":"VLOOKUP(BA28,team,3,FALSE)","v":"兵庫県"},29]
[]
[]
[]
[6,{"$f":"VLOOKUP(A32,team,2,FALSE)","v":"延暦寺学園比叡山高等学校"},null,{"$f":"VLOOKUP(A32,team,3,FALSE)","v":"滋賀県"},null,null,null,null,null,null,null,null,1,null,null,null,null,null,null,null,null,null,null,null,null,null,null,null,null,null,null,null,null,null,null,null,null,null,null,null,null,0,null,null,null,null,null,null,null,null,{"$f":"VLOOKUP(BA32,team,2,FALSE)","v":"金沢高等学校"},{"$f":"VLOOKUP(BA32,team,3,FALSE)","v":"石川県"},30]
[]
[]
[]
[7,{"$f":"VLOOKUP(A36,team,2,FALSE)","v":"京都西山高等学校"},null,{"$f":"VLOOKUP(A36,team,3,FALSE)","v":"京都府"},null,null,null,null,null,null,null,null,null,null,null,null,null,null,null,null,null,null,null,null,0,null,null,null,null,0,null,null,null,null,null,null,null,null,null,null,null,null,null,null,null,null,null,null,null,null,{"$f":"VLOOKUP(BA36,team,2,FALSE)","v":"高知県立高知丸の内高等学校"},{"$f":"VLOOKUP(BA36,team,3,FALSE)","v":"高知県"},31]
[null,null,null,null,null,null,null,null,null,null,null,null,10,null,null,null,null,null,null,null,null,null,null,null,null,null,null,null,null,null,null,null,null,null,null,null,null,null,null,null,null,0]
[]
[]
[8,{"$f":"VLOOKUP(A40,team,2,FALSE)","v":"都城東高等学校"},null,{"$f":"VLOOKUP(A40,team,3,FALSE)","v":"宮崎県"},null,null,null,null,null,null,null,null,null,null,null,null,null,null,null,null,null,null,null,null,null,null,null,null,null,null,null,null,null,null,null,null,null,null,null,null,null,null,null,null,null,null,null,null,null,null,{"$f":"VLOOKUP(BA40,team,2,FALSE)","v":"とわの森三愛高等学校"},{"$f":"VLOOKUP(BA40,team,3,FALSE)","v":"北海道"},32]
[null,null,null,null,null,null,null,null,1,null,null,null,null,null,null,null,1,null,null,null,null,null,null,null,null,null,null,null,null,null,null,null,null,null,null,null,null,4,null,null,null,null,null,null,null,0]
[null,null,null,null,null,null,null,null,null,null,null,null,1,null,null,null,null,null,null,null,null,null,null,null,null,null,null,null,null,null,null,null,null,null,null,null,null,null,null,null,null,7]
[]
[9,{"$f":"VLOOKUP(A44,team,2,FALSE)","v":"聖カタリナ学園高等学校"},null,{"$f":"VLOOKUP(A44,team,3,FALSE)","v":"愛媛県"},null,null,null,null,0,null,null,null,null,null,null,null,null,null,null,null,null,null,null,null,null,null,null,null,null,null,null,null,null,null,null,null,null,null,null,null,null,null,null,null,null,1,null,null,null,null,{"$f":"VLOOKUP(BA44,team,2,FALSE)","v":"千葉経済大学附属高等学校"},{"$f":"VLOOKUP(BA44,team,3,FALSE)","v":"千葉県"},33]
[null,null,null,null,null,null,null,null,null,null,null,null,null,null,null,null,null,null,null,null,6,null,null,null,null,null,null,null,null,null,null,null,null,7]
[]
[]
[10,{"$f":"VLOOKUP(A48,team,2,FALSE)","v":"高崎健康福祉大学高崎高等学校"},null,{"$f":"VLOOKUP(A48,team,3,FALSE)","v":"群馬県"},null,null,null,null,null,null,null,null,null,null,null,null,null,null,null,null,null,null,null,null,null,null,null,null,null,null,null,null,null,null,null,null,null,null,null,null,null,null,null,null,null,null,null,null,null,null,{"$f":"VLOOKUP(BA48,team,2,FALSE)","v":"香川県立高松南高等学校　　"},{"$f":"VLOOKUP(BA48,team,3,FALSE)","v":"香川県"},34]
[null,null,null,null,null,null,null,null,6,null,null,null,null,null,null,null,null,null,null,null,null,null,null,null,null,null,null,null,null,null,null,null,null,null,null,null,null,null,null,null,null,null,null,null,null,1]
[]
[null,null,null,null,null,null,null,null,null,null,null,null,6,null,null,null,null,null,null,null,null,null,null,null,null,null,null,null,null,null,null,null,null,null,null,null,null,null,null,null,null,2]
[11,{"$f":"VLOOKUP(A52,team,2,FALSE)","v":"宮城県利府高等学校"},null,{"$f":"VLOOKUP(A52,team,3,FALSE)","v":"宮城県"},null,null,null,null,1,null,null,null,null,null,null,null,6,null,null,null,null,null,null,null,null,null,null,null,null,null,null,null,null,null,null,null,null,2,null,null,null,null,null,null,null,0,null,null,null,null,{"$f":"VLOOKUP(BA52,team,2,FALSE)","v":"福岡県立福岡中央高等学校"},{"$f":"VLOOKUP(BA52,team,3,FALSE)","v":"福岡県"},35]
[]
[]
[]
[12,{"$f":"VLOOKUP(A56,team,2,FALSE)","v":"福井県立三国高等学校"},null,{"$f":"VLOOKUP(A56,team,3,FALSE)","v":"福井県"},null,null,null,null,null,null,null,null,4,null,null,null,null,null,null,null,null,null,null,null,null,null,null,null,null,null,null,null,null,null,null,null,null,null,null,null,null,4,null,null,null,null,null,null,null,null,{"$f":"VLOOKUP(BA56,team,2,FALSE)","v":"東海学園高等学校"},{"$f":"VLOOKUP(BA56,team,3,FALSE)","v":"愛知県"},36]
[null,null,null,null,null,null,null,null,null,null,null,null,null,null,null,null,null,null,null,null,null,null,null,null,2,null,null,null,null,0]
[]
[]
[13,{"$f":"VLOOKUP(A60,team,2,FALSE)","v":"帝京第三高等学校"},null,{"$f":"VLOOKUP(A60,team,3,FALSE)","v":"山梨県"},null,null,null,null,null,null,null,null,null,null,null,null,null,null,null,null,null,null,null,null,null,null,null,null,null,null,null,null,null,null,null,null,null,null,null,null,null,null,null,null,null,null,null,null,null,null,{"$f":"VLOOKUP(BA60,team,2,FALSE)","v":"中村女子高等学校"},{"$f":"VLOOKUP(BA60,team,3,FALSE)","v":"山口県"},37]
[null,null,null,null,null,null,null,null,null,null,null,null,0,null,null,null,null,null,null,null,null,null,null,null,null,null,null,null,null,null,null,null,null,null,null,null,null,null,null,null,null,6]
[]
[]
[14,{"$f":"VLOOKUP(A64,team,2,FALSE)","v":"飛龍高等学校"},null,{"$f":"VLOOKUP(A64,team,3,FALSE)","v":"静岡県"},null,null,null,null,null,null,null,null,null,null,null,null,null,null,null,null,null,null,null,null,null,null,null,null,null,null,null,null,null,null,null,null,null,null,null,null,null,null,null,null,null,null,null,null,null,null,{"$f":"VLOOKUP(BA64,team,2,FALSE)","v":"白鷗大学足利高等学校"},{"$f":"VLOOKUP(BA64,team,3,FALSE)","v":"栃木県"},38]
[null,null,null,null,null,null,null,null,4,null,null,null,null,null,null,null,1,null,null,null,null,null,null,null,null,null,null,null,null,null,null,null,null,null,null,null,null,0,null,null,null,null,null,null,null,1]
[null,null,null,null,null,null,null,null,null,null,null,null,1,null,null,null,null,null,null,null,null,null,null,null,null,null,null,null,null,null,null,null,null,null,null,null,null,null,null,null,null,7]
[]
[15,{"$f":"VLOOKUP(A68,team,2,FALSE)","v":"大分県立大分南高等学校"},null,{"$f":"VLOOKUP(A68,team,3,FALSE)","v":"大分県"},null,null,null,null,0,null,null,null,null,null,null,null,null,null,null,null,null,null,null,null,null,null,null,null,null,null,null,null,null,null,null,null,null,null,null,null,null,null,null,null,null,5,null,null,null,null,{"$f":"VLOOKUP(BA68,team,2,FALSE)","v":"花巻東高等学校"},{"$f":"VLOOKUP(BA68,team,3,FALSE)","v":"岩手県"},39]
[]
[]
[]
[16,{"$f":"VLOOKUP(A72,team,2,FALSE)","v":"神戸常盤女子高等学校　　　　"},null,{"$f":"VLOOKUP(A72,team,3,FALSE)","v":"兵庫県"},null,null,null,null,null,null,null,null,null,null,null,null,null,null,null,null,0,null,null,null,null,null,null,null,null,null,null,null,null,1,null,null,null,null,null,null,null,null,null,null,null,null,null,null,null,null,{"$f":"VLOOKUP(BA72,team,2,FALSE)","v":"多治見西高等学校"},{"$f":"VLOOKUP(BA72,team,3,FALSE)","v":"岐阜県"},40]
[null,null,null,null,null,null,null,null,13,null,null,null,null,null,null,null,null,null,null,null,null,null,null,null,null,null,null,null,null,null,null,null,null,null,null,null,null,null,null,null,null,null,null,null,null,2]
[]
[null,null,null,null,null,null,null,null,null,null,null,null,3,null,null,null,null,null,null,null,null,null,null,null,null,null,null,null,null,null,null,null,null,null,null,null,null,null,null,null,null,1]
[17,{"$f":"VLOOKUP(A76,team,2,FALSE)","v":"新潟県立高田北城高等学校"},null,{"$f":"VLOOKUP(A76,team,3,FALSE)","v":"新潟県"},null,null,null,null,1,null,null,null,null,null,null,null,0,null,null,null,null,null,null,null,null,null,null,null,null,null,null,null,null,null,null,null,null,2,null,null,null,null,null,null,null,0,null,null,null,null,{"$f":"VLOOKUP(BA76,team,2,FALSE)","v":"奈良女子高等学校"},{"$f":"VLOOKUP(BA76,team,3,FALSE)","v":"奈良県"},41]
[]
[]
[]
[18,{"$f":"VLOOKUP(A80,team,2,FALSE)","v":"徳島県立辻高等学校"},null,{"$f":"VLOOKUP(A80,team,3,FALSE)","v":"徳島県"},null,null,null,null,null,null,null,null,2,null,null,null,null,null,null,null,null,null,null,null,null,null,null,null,null,null,null,null,null,null,null,null,null,null,null,null,null,0,null,null,null,null,null,null,null,null,{"$f":"VLOOKUP(BA80,team,2,FALSE)","v":"沖縄県立コザ高等学校"},{"$f":"VLOOKUP(BA80,team,3,FALSE)","v":"沖縄県"},42]
[null,null,null,null,null,null,null,null,null,null,null,null,null,null,null,null,null,null,null,null,null,null,null,null,3,null,null,null,null,1]
[]
[]
[19,{"$f":"VLOOKUP(A84,team,2,FALSE)","v":"和歌山県立笠田高等学校"},null,{"$f":"VLOOKUP(A84,team,3,FALSE)","v":"和歌山県"},null,null,null,null,null,null,null,null,null,null,null,null,null,null,null,null,null,null,null,null,null,null,null,null,null,null,null,null,null,null,null,null,null,null,null,null,null,null,null,null,null,null,null,null,null,null,{"$f":"VLOOKUP(BA84,team,2,FALSE)","v":"茨城県立水戸商業高等学校"},{"$f":"VLOOKUP(BA84,team,3,FALSE)","v":"茨城県"},43]
[null,null,null,null,null,null,null,null,null,null,null,null,1,null,null,null,null,null,null,null,null,null,null,null,null,null,null,null,null,null,null,null,null,null,null,null,null,null,null,null,null,2]
[]
[]
[20,{"$f":"VLOOKUP(A88,team,2,FALSE)","v":"日出高等学校"},null,{"$f":"VLOOKUP(A88,team,3,FALSE)","v":"東京都"},null,null,null,null,null,null,null,null,null,null,null,null,null,null,null,null,null,null,null,null,null,null,null,null,null,null,null,null,null,null,null,null,null,null,null,null,null,null,null,null,null,null,null,null,null,null,{"$f":"VLOOKUP(BA88,team,2,FALSE)","v":"長野県長野商業高等学校"},{"$f":"VLOOKUP(BA88,team,3,FALSE)","v":"長野県"},44]
[null,null,null,null,null,null,null,null,4,null,null,null,null,null,null,null,0,null,null,null,null,null,null,null,null,null,null,null,null,null,null,null,null,null,null,null,null,0,null,null,null,null,null,null,null,3]
[null,null,null,null,null,null,null,null,null,null,null,null,6,null,null,null,null,null,null,null,null,null,null,null,null,null,null,null,null,null,null,null,null,null,null,null,null,null,null,null,null,0]
[]
[21,{"$f":"VLOOKUP(A92,team,2,FALSE)","v":"伊勢学園高等学校"},null,{"$f":"VLOOKUP(A92,team,3,FALSE)","v":"三重県"},null,null,null,null,0,null,null,null,null,null,null,null,null,null,null,null,null,null,null,null,null,null,null,null,null,null,null,null,null,null,null,null,null,null,null,null,null,null,null,null,null,2,null,null,null,null,{"$f":"VLOOKUP(BA92,team,2,FALSE)","v":"熊本県立熊本商業高等学校"},{"$f":"VLOOKUP(BA92,team,3,FALSE)","v":"熊本県"},45]
[null,null,null,null,null,null,null,null,null,null,null,null,null,null,null,null,null,null,null,null,1,null,null,null,null,null,null,null,null,null,null,null,null,0]
[]
[]
[22,{"$f":"VLOOKUP(A96,team,2,FALSE)","v":"帝京安積高等学校"},null,{"$f":"VLOOKUP(A96,team,3,FALSE)","v":"福島県"},null,null,null,null,null,null,null,null,null,null,null,null,null,null,null,null,null,null,null,null,null,null,null,null,null,null,null,null,null,null,null,null,null,null,null,null,null,null,null,null,null,null,null,null,null,null,{"$f":"VLOOKUP(BA96,team,2,FALSE)","v":"清水ヶ丘高等学校"},{"$f":"VLOOKUP(BA96,team,3,FALSE)","v":"広島県"},46]
[null,null,null,null,null,null,null,null,2,null,null,null,null,null,null,null,null,null,null,null,null,null,null,null,null,null,null,null,null,null,null,null,null,null,null,null,null,null,null,null,null,null,null,null,null,3]
[]
[null,null,null,null,null,null,null,null,null,null,null,null,0,null,null,null,null,null,null,null,null,null,null,null,null,null,null,null,null,null,null,null,null,null,null,null,null,null,null,null,null,2]
[23,{"$f":"VLOOKUP(A100,team,2,FALSE)","v":"佐賀女子短期大学付属佐賀女子高等学校"},null,{"$f":"VLOOKUP(A100,team,3,FALSE)","v":"佐賀県"},null,null,null,null,4,null,null,null,null,null,null,null,7,null,null,null,null,null,null,null,null,null,null,null,null,null,null,null,null,null,null,null,null,5,null,null,null,null,null,null,null,0,null,null,null,null,{"$f":"VLOOKUP(BA100,team,2,FALSE)","v":"大阪市立桜宮高等学校"},{"$f":"VLOOKUP(BA100,team,3,FALSE)","v":"大阪府"},47]
[]
[]
[]
[24,{"$f":"VLOOKUP(A104,team,2,FALSE)","v":"創志学園高等学校"},null,{"$f":"VLOOKUP(A104,team,3,FALSE)","v":"岡山県"},null,null,null,null,null,null,null,null,9,null,null,null,null,null,null,null,null,null,null,null,null,null,null,null,null,null,null,null,null,null,null,null,null,null,null,null,null,0,null,null,null,null,null,null,null,null,{"$f":"VLOOKUP(BA104,team,2,FALSE)","v":"弘前学院聖愛高等学校"},{"$f":"VLOOKUP(BA104,team,3,FALSE)","v":"青森県"},48]

{"sheet":"データシート","index":1,"n_rows":60,"n_cols":3,"rows_kept":60,"cut":false,"hidden":false,"merged":[]}
[]
["大会名","第３5回　全国高等学校女子ソフトボール選抜大会"]
[]
["期日","平成２９年３月１８日(金)～２２日(水)"]
[null,"大会会場"]
[1,"加古川市河川敷両荘地区グラウンド(A,B,C)・日岡山公園野球場(D)"]
[2]
[3]
[4]
[5]
[null,"チーム名"]
[0," "," "]
[1,"島根県立三刀屋高等学校","島根県"]
[2,"埼玉栄高等学校","埼玉県"]
[3,"山形学院高等学校","山形県"]
[4,"富山県立滑川高等学校","富山県"]
[5,"九州文化学園高等学校","長崎県"]
[6,"延暦寺学園比叡山高等学校","滋賀県"]
[7,"京都西山高等学校","京都府"]
[8,"都城東高等学校","宮崎県"]
[9,"聖カタリナ学園高等学校","愛媛県"]
[10,"高崎健康福祉大学高崎高等学校","群馬県"]
[11,"宮城県利府高等学校","宮城県"]
[12,"福井県立三国高等学校","福井県"]
[13,"帝京第三高等学校","山梨県"]
[14,"飛龍高等学校","静岡県"]
[15,"大分県立大分南高等学校","大分県"]
[16,"神戸常盤女子高等学校　　　　","兵庫県"]
[17,"新潟県立高田北城高等学校","新潟県"]
[18,"徳島県立辻高等学校","徳島県"]
[19,"和歌山県立笠田高等学校","和歌山県"]
[20,"日出高等学校","東京都"]
[21,"伊勢学園高等学校","三重県"]
[22,"帝京安積高等学校","福島県"]
[23,"佐賀女子短期大学付属佐賀女子高等学校","佐賀県"]
[24,"創志学園高等学校","岡山県"]
[25,"鳥取城北高等学校","鳥取県"]
[26,"神奈川県立厚木商業高等学校","神奈川県"]
[27,"神村学園高等部","鹿児島県"]
[28,"秋田県立秋田北高等学校","秋田県"]
[29,"神戸野田高等学校","兵庫県"]
[30,"金沢高等学校","石川県"]
[31,"高知県立高知丸の内高等学校","高知県"]
[32,"とわの森三愛高等学校","北海道"]
[33,"千葉経済大学附属高等学校","千葉県"]
[34,"香川県立高松南高等学校　　","香川県"]
[35,"福岡県立福岡中央高等学校","福岡県"]
[36,"東海学園高等学校","愛知県"]
[37,"中村女子高等学校","山口県"]
[38,"白鷗大学足利高等学校","栃木県"]
[39,"花巻東高等学校","岩手県"]
[40,"多治見西高等学校","岐阜県"]
[41,"奈良女子高等学校","奈良県"]
[42,"沖縄県立コザ高等学校","沖縄県"]
[43,"茨城県立水戸商業高等学校","茨城県"]
[44,"長野県長野商業高等学校","長野県"]
[45,"熊本県立熊本商業高等学校","熊本県"]
[46,"清水ヶ丘高等学校","広島県"]
[47,"大阪市立桜宮高等学校","大阪府"]
[48,"弘前学院聖愛高等学校","青森県"]